bitfinex/quotes_ETHUSD_20230830
["timestamp","ask_amount","ask_price","bid_price","bid_amount"]
[1693379227372,10.98526292,1719.9,1719.6,1.01079373]
[1693379227698,1.406,1719.7,1719.4,1.52763158]
[1693379227993,18.8519,1719.6,1719.5,1.62183264]
[1693379228196,18.8519,1719.6,1719.5,1.01078001]
[1693379228601,18.8519,1719.6,1719.4,0.61105263]
[1693379229505,1.406,1719.5,1719.4,0.61105263]
[1693379229802,18.85292,1719.5,1719.4,1.01078001]
[1693379229969,18.85292,1719.5,1719.4,0.61105263]
[1693379230171,18.85292,1719.5,1719.4,1.01078001]
[1693379230397,18.85292,1719.5,1719.3,1.62183264]
[1693379230600,20.01582,1719.5,1719.4,1.01078001]
[1693379230777,21.42182,1719.5,1719.4,1.01078001]
[1693379230973,21.42182,1719.5,1719.3,1.62183264]
[1693379231172,20.01582,1719.5,1719.4,1.01078001]
[1693379231390,22.47950481,1719.5,1719.4,1.01078001]
[1693379231776,22.47950481,1719.5,1719.3,1.62183264]
[1693379236122,0.31027466,1719.4,1719.3,1.62183264]
[1693379236322,11.94223466,1719.4,1719.3,1.62183264]
[1693379237009,11.94223466,1719.4,1719.3,0.61105263]
[1693379238520,11.94223466,1719.4,1719.3,1.62183264]
[1693379238717,11.94223466,1719.4,1719.3,2.53841159]
[1693379238917,11.94223466,1719.4,1719.3,2.48841159]
[1693379240290,11.64663081,1719.4,1719.3,1.92735896]
[1693379240599,11.64663081,1719.4,1719.3,0.91657895]
[1693379244396,11.64663081,1719.4,1719.3,1.92735896]
[1693379246828,11.64663081,1719.4,1719.3,3.14946423]
[1693379247026,11.64663081,1719.4,1719.3,3.61717381]
[1693379247329,4.75247148,1719.4,1719.3,3.18059486]
[1693379252633,4.75247148,1719.4,1719.3,4.70822645]
[1693379253231,4.75247148,1719.4,1719.3,3.18059486]
[1693379253533,4.75247148,1719.4,1719.3,4.70822645]
[1693379254130,4.75247148,1719.4,1719.3,3.18059486]
[1693379254713,4.75247148,1719.4,1719.3,4.70822645]
[1693379255297,4.75247148,1719.4,1719.3,3.18059486]
[1693379255703,4.75247148,1719.4,1719.3,4.70822645]
[1693379256136,4.75247148,1719.4,1719.3,3.18059486]
[1693379256640,4.75247148,1719.4,1719.3,4.70822645]
[1693379258742,10.56845148,1719.4,1719.3,4.70822645]
[1693379258943,10.56845148,1719.4,1719.3,3.14810468]
[1693379259247,10.56845148,1719.4,1719.3,2.23288528]
[1693379259407,10.56845148,1719.4,1719.3,3.14810479]
[1693379259609,10.56845148,1719.4,1719.3,3.09810248]
[1693379260310,10.56845148,1719.4,1719.3,3.09816815]
[1693379260738,10.56845148,1719.4,1719.3,1.87606288]
[1693379262021,16.38443148,1719.4,1719.3,1.87606288]
[1693379262339,18.93694863,1719.4,1719.3,1.87606288]
[1693379262707,18.93694863,1719.4,1719.3,2.48632326]
[1693379263245,18.93694863,1719.4,1719.3,1.87606288]
[1693379263610,18.93694863,1719.4,1719.3,2.48639159]
[1693379266757,18.93694863,1719.4,1719.3,1.57110872]
[1693379270466,18.93694863,1719.4,1719.3,0.61032871]
[1693379270627,20.34294863,1719.4,1719.3,0.61032871]
[1693379276345,17.79043148,1719.4,1719.3,0.61032871]
[1693379276748,11.97445148,1719.4,1719.3,0.61032871]
[1693379276950,17.79043148,1719.4,1719.3,1.52561158]
[1693379278339,17.79043148,1719.4,1719.3,0.61032871]
[1693379279763,17.79043148,1719.4,1719.3,1.62121262]
[1693379285573,11.97445148,1719.4,1719.3,1.62121262]
[1693379290055,11.97445148,1719.4,1719.2,2.01528287]
[1693379290056,11.97445148,1719.4,1719.2,1.1]
[1693379290276,11.97445148,1719.4,1719.3,1.62133938]
[1693379299500,10.56845148,1719.4,1719.3,1.62133938]
[1693379301302,10.56845148,1719.4,1719.3,1.62158235]
[1693379303685,10.56845148,1719.4,1719.3,0.61069159]
[1693379304004,10.56845148,1719.4,1719.3,1.62158235]
[1693379306110,10.56845148,1719.4,1719.3,2.53761973]
[1693379308411,10.56845148,1719.4,1719.3,1.92692814]
[1693379313485,4.75247148,1719.4,1719.3,2.56225169]
[1693379313820,4.75247148,1719.4,1719.3,2.65710507]
[1693379315720,10.56845148,1719.4,1719.3,2.65710507]
[1693379317131,4.75247148,1719.4,1719.3,2.65710507]
[1693379317825,10.56845148,1719.4,1719.3,2.65710507]
[1693379318027,9.60036927,1719.7,1719.3,2.65710507]
[1693379318028,0.47342927,1719.7,1719.4,0.29554605]
[1693379318189,41.60903,1719.9,1719.6,7.3317235]
[1693379318394,41.60903,1719.9,1719.8,1.52705125]
[1693379318724,41.60903,1719.9,1719.8,1.49089076]
[1693379318891,41.60903,1719.9,1719.8,1.01089076]
[1693379319085,41.60903,1719.9,1719.7,1.52705125]
[1693379319291,11.62903,1719.9,1719.7,1.52705125]
[1693379319625,11.62903,1719.9,1719.8,1.01089076]
[1693379319921,11.62903,1719.9,1719.7,0.6108205]
[1693379320626,11.62903,1719.9,1719.7,1.62171126]
[1693379320805,11.62903,1719.9,1719.8,1.01089076]
[1693379321191,11.62903,1719.9,1719.7,0.6108205]
[1693379321394,11.62903,1719.9,1719.6,2.53794201]
[1693379321645,11.62903,1719.9,1719.7,1.49089076]
[1693379321793,11.62903,1719.9,1719.8,1.01089076]
[1693379322532,11.62903,1719.9,1719.7,0.48]
[1693379325810,6.04956696,1719.8,1719.7,0.48]
[1693379326212,6.04956696,1719.8,1719.7,1.49067472]
[1693379329349,6.04956696,1719.8,1719.7,1.79216181]
[1693379330144,6.04956696,1719.8,1719.7,2.4018403]
[1693379332625,6.04956696,1719.8,1719.7,3.5018403]
[1693379334555,6.04956696,1719.8,1719.7,4.41635803]
[1693379336339,6.04956696,1719.8,1719.7,3.80667954]
[1693379337558,6.04956696,1719.8,1719.7,5.02603652]
[1693379338163,4.97154233,1719.8,1719.7,5.02603652]
[1693379338355,5.20648929,1719.8,1719.7,5.02603652]
[1693379339568,5.20648929,1719.8,1719.7,4.11151879]
[1693379349550,5.20648929,1719.8,1719.7,5.63571501]
[1693379352482,5.20648929,1719.8,1719.7,4.41635803]
[1693379357152,0.23494696,1719.8,1719.7,4.41635803]
[1693379357663,11.62894,1719.9,1719.7,2.89216181]
[1693379357863,11.62894,1719.9,1719.8,3.75453203]
[1693379358054,11.02258168,1719.9,1719.8,3.75453203]
[1693379359348,11.02258168,1719.9,1719.8,2.23016686]
[1693379359587,11.02258168,1719.9,1719.8,3.75453203]
[1693379361090,11.02258168,1719.9,1719.8,2.23016686]
[1693379361482,11.02258168,1719.9,1719.8,3.75453203]
[1693379362971,11.02258168,1719.9,1719.8,2.23016686]
[1693379363587,11.02258168,1719.9,1719.8,3.75453203]
[1693379364517,11.02258168,1719.9,1719.8,2.23016686]
[1693379366499,11.02258168,1719.9,1719.8,1.92681913]
[1693379366791,11.02258168,1719.9,1719.8,2.55188677]
[1693379368396,11.02258168,1719.9,1719.8,3.16265207]
[1693379369175,11.02258168,1719.9,1719.8,2.53758443]
[1693379370906,11.24718211,1719.9,1719.8,2.53758443]
[1693379381446,11.24718211,1719.9,1719.8,1.92681913]
[1693379418173,11.24718211,1719.9,1719.8,1.01062567]
[1693379418366,11.24718211,1719.9,1719.8,0.91661783]
[1693379418567,11.24718211,1719.9,1719.8,1.92724352]
[1693379431967,11.44240734,1719.9,1719.8,1.92724352]
[1693379454542,11.44240734,1719.9,1719.8,0.91661783]
[1693379454747,11.44240734,1719.9,1719.8,1.92724352]
[1693379457953,0.41982566,1719.9,1719.8,1.92724352]
[1693379458250,6.23426566,1719.9,1719.8,1.92724352]
[1693379459353,12.04874566,1719.9,1719.8,1.92724352]
[1693379460435,11.67374566,1719.9,1719.8,1.92724352]
[1693379460634,12.03916307,1719.9,1719.8,1.92724352]
[1693379469171,0.41024307,1719.9,1719.8,2.44295322]
[1693379469369,0.41024307,1719.9,1719.8,4.75618887]
[1693379469775,11.72855,1720.1,1719.8,3.53403177]
[1693379469952,5.91462,1720.1,1720.0,0.61081829]
[1693379470152,5.91462,1720.1,1720.0,1.62144398]
[1693379470978,11.72841,1720.1,1720.0,1.62144398]
[1693379475977,12.13391437,1720.1,1720.0,1.62144398]
[1693379478084,12.13391437,1720.1,1720.0,2.72144398]
[1693379483381,12.13391437,1720.1,1720.0,2.11062569]
[1693379485890,12.13391437,1720.1,1720.0,2.72144398]
[1693379486393,12.13391437,1720.1,1720.0,2.11062569]
[1693379486569,12.13391437,1720.1,1720.0,2.72144398]
[1693379490394,12.13391437,1720.1,1720.0,2.11062569]
[1693379493314,12.13391437,1720.1,1720.0,2.72144398]
[1693379505925,12.13391437,1720.1,1720.0,3.02685313]
[1693379507305,21.78283243,1720.1,1720.0,2.72103828]
[1693379511429,21.78283243,1720.1,1720.0,3.63726572]
[1693379514431,21.78283243,1720.1,1720.0,3.02685313]
[1693379541072,21.78283243,1720.1,1720.0,2.72151978]
[1693379545679,21.78283243,1720.1,1720.0,2.11062569]
[1693379563730,17.94770437,1720.1,1720.0,2.72151978]
[1693379566056,19.35370437,1720.1,1720.0,2.72151978]
[1693379569360,19.35370437,1720.1,1720.0,2.11062569]
[1693379600335,22.22718502,1720.1,1720.0,2.11062569]
[1693379600543,25.22718502,1720.1,1720.0,1.1]
[1693379600836,28.82207114,1720.1,1720.0,1.1]
[1693379608458,29.69989418,1720.1,1720.0,1.1]
[1693379615435,28.82207114,1720.1,1720.0,1.1]
[1693379627534,29.67421984,1720.1,1720.0,1.1]
[1693379629228,28.82207114,1720.1,1720.0,1.1]
[1693379638781,25.22718502,1720.1,1720.0,1.1]
[1693379645179,26.09829131,1720.1,1720.0,1.1]
[1693379647506,1.406,1720.0,1719.7,0.61089409]
[1693379647674,1.406,1719.8,1719.6,0.61089409]
[1693379647873,1.406,1719.8,1719.5,1.52712153]
[1693379647874,18.85088,1719.7,1719.5,1.52712153]
[1693379648180,1.406,1719.6,1719.5,1.52712153]
[1693379648392,18.8519,1719.6,1719.5,1.52712153]
[1693379648694,18.8519,1719.6,1719.5,2.5379142]
[1693379648875,18.8519,1719.6,1719.5,1.62168676]
[1693379649605,18.8519,1719.6,1719.5,0.61089409]
[1693379650808,18.8519,1719.6,1719.5,1.62168676]
[1693379651198,18.8519,1719.6,1719.5,0.61089409]
[1693379652102,18.8519,1719.6,1719.5,1.71089409]
[1693379652275,21.318586,1719.6,1719.5,2.72168676]
[1693379653612,21.318586,1719.6,1719.5,1.62168676]
[1693379654103,21.318586,1719.6,1719.5,0.61089409]
[1693379655994,21.70773686,1719.6,1719.5,0.61089409]
[1693379657033,21.70773686,1719.6,1719.5,1.01079267]
[1693379657326,21.70773686,1719.6,1719.4,2.5379142]
[1693379657525,1.406,1719.5,1719.4,2.5379142]
[1693379657725,18.85292,1719.5,1719.4,2.5379142]
[1693379660338,18.85292,1719.5,1719.4,1.62168676]
[1693379660512,18.85292,1719.5,1719.4,2.5379142]
[1693379660833,18.85292,1719.5,1719.4,1.62168676]
[1693379661795,18.85292,1719.5,1719.4,0.61089409]
[1693379666439,18.85292,1719.5,1719.4,1.62168676]
[1693379666802,18.85292,1719.5,1719.4,0.61089409]
[1693379670055,18.85292,1719.5,1719.4,1.62168676]
[1693379670658,18.85292,1719.5,1719.4,0.61089409]
[1693379671020,19.23639676,1719.5,1719.4,0.61089409]
[1693379675830,19.23639676,1719.5,1719.4,1.62168676]
[1693379676029,19.23639676,1719.5,1719.4,0.61089409]
[1693379683465,19.23639676,1719.5,1719.4,1.52712153]
[1693379684449,19.23639676,1719.5,1719.4,2.5379142]
[1693379684663,19.23639676,1719.5,1719.4,1.52712153]
[1693379685268,19.23639676,1719.5,1719.4,1.92702011]
[1693379685470,19.23639676,1719.5,1719.4,0.91622744]
[1693379686369,19.23639676,1719.5,1719.4,1.52649108]
[1693379686740,19.23639676,1719.5,1719.4,1.92702011]
[1693379686941,19.23639676,1719.5,1719.4,0.91622744]
[1693379687141,19.23639676,1719.5,1719.4,1.52649975]
[1693379688946,19.23639676,1719.5,1719.4,0.91622744]
[1693379689147,19.23639676,1719.5,1719.4,1.92702011]
[1693379689342,19.23639676,1719.5,1719.4,0.91622744]
[1693379691786,19.23639676,1719.5,1719.4,2.13786402]
[1693379692877,19.23639676,1719.5,1719.4,2.23242925]
[1693379693051,19.23639676,1719.5,1719.4,1.22163658]
[1693379696081,19.23639676,1719.5,1719.4,2.23242925]
[1693379696865,19.23639676,1719.5,1719.4,1.22163658]
[1693379703588,21.44910764,1719.5,1719.4,1.22163658]
[1693379705760,25.85510764,1719.5,1719.4,0.40033974]
[1693379706087,25.85510764,1719.5,1719.2,0.9166942]
[1693379706288,24.67128,1719.3,1719.2,0.9166942]
[1693379706894,25.05270311,1719.3,1719.1,2.13833078]
[1693379707098,1.406,1719.2,1719.1,1.22163658]
[1693379707388,18.85595,1719.2,1719.1,0.91607398]
[1693379712072,11.6333,1719.2,1719.1,2.13771056]
[1693379712407,11.6333,1719.2,1719.1,2.13705522]
[1693379714307,11.6333,1719.2,1719.1,0.91541864]
[1693379714607,11.6333,1719.2,1719.1,1.2818938]
[1693379716272,12.01456542,1719.2,1719.1,1.2818938]
[1693379717276,12.01456542,1719.2,1719.1,0.91541864]
[1693379730523,12.01456542,1719.2,1719.1,1.92636046]
[1693379731305,12.01456542,1719.2,1719.1,0.91541864]
[1693379731733,12.18659554,1719.2,1719.1,0.91541864]
[1693379732191,12.18659554,1719.2,1719.1,1.92636046]
[1693379733299,12.18659554,1719.2,1719.1,0.91541864]
[1693379735933,12.18659554,1719.2,1719.1,2.13705522]
[1693379736430,12.18659554,1719.2,1719.1,1.92636046]
[1693379736625,12.18659554,1719.2,1719.1,0.91541864]
[1693379736829,12.18659554,1719.2,1719.1,2.13705522]
[1693379737031,12.18659554,1719.2,1719.1,1.92636046]
[1693379737499,18.00324554,1719.2,1719.1,1.92636046]
[1693379737700,18.00324554,1719.2,1719.1,0.91541864]
[1693379738739,18.00324554,1719.2,1719.1,2.13705522]
[1693379741724,18.00324554,1719.2,1719.1,1.22163658]
[1693379741895,18.00324554,1719.2,1719.1,2.13726409]
[1693379742228,18.00324554,1719.2,1719.1,2.2325784]
[1693379743143,18.00324554,1719.2,1719.1,1.22163658]
[1693379751270,18.00324554,1719.2,1719.1,2.5386382]
[1693379751965,18.00324554,1719.2,1719.1,1.52769638]
[1693379755272,18.00324554,1719.2,1719.1,1.62769638]
[1693379755656,18.00324554,1719.2,1719.1,2.6386382]
[1693379757378,12.18659554,1719.2,1719.1,2.6386382]
[1693379758773,12.18659554,1719.2,1719.1,2.6389618]
[1693379769805,5.8491,1719.4,1719.1,2.6389618]
[1693379769806,5.8161,1719.4,1719.2,0.05324386]
[1693379770001,11.63233,1719.4,1719.3,1.22235703]
[1693379770371,11.63233,1719.4,1719.3,2.23328192]
[1693379770767,11.63233,1719.4,1719.3,1.22235703]
[1693379771409,11.63233,1719.4,1719.3,2.13886485]
[1693379773275,11.63233,1719.4,1719.3,2.60663845]
[1693379773475,11.63233,1719.4,1719.3,3.61756334]
[1693379775492,11.63233,1719.4,1719.3,2.39520631]
[1693379775717,11.63233,1719.4,1719.3,3.61756334]
[1693379777615,12.17303911,1719.4,1719.3,3.61756334]
[1693379778217,12.17303911,1719.4,1719.3,2.39520631]
[1693379778382,12.17303911,1719.4,1719.3,2.87520631]
[1693379778788,6.35680911,1719.4,1719.3,2.87520631]
[1693379779216,12.17303911,1719.4,1719.3,2.87520631]
[1693379784917,12.17303911,1719.4,1719.3,4.09756334]
[1693379787222,12.17303911,1719.4,1719.3,2.87520631]
[1693379789687,6.35680911,1719.4,1719.3,2.87520631]
[1693379789890,0.54070911,1719.4,1719.3,3.18105552]
[1693379790089,0.54070911,1719.4,1719.3,3.48664478]
[1693379790295,0.54070911,1719.4,1719.3,9.60564478]
[1693379790493,5.81535,1719.6,1719.3,9.60564478]
[1693379790693,5.81535,1719.6,1719.5,0.91562153]
[1693379791004,5.81535,1719.6,1719.5,2.40654642]
[1693379791206,6.31825291,1719.6,1719.5,2.40654642]
[1693379795140,0.50290291,1719.6,1719.5,2.40654642]
[1693379795439,6.28970191,1719.7,1719.5,2.40654642]
[1693379795440,12.10482191,1719.7,1719.5,2.40654642]
[1693379795647,12.10482191,1719.7,1719.6,2.10089205]
[1693379795818,12.10482191,1719.7,1719.6,2.45054341]
[1693379796448,6.28970191,1719.7,1719.6,2.45054341]
[1693379797408,6.28970191,1719.7,1719.6,1.84057625]
[1693379800544,6.28970191,1719.7,1719.6,2.45054341]
[1693379800749,6.28970191,1719.7,1719.6,1.84057625]
[1693379804455,6.28970191,1719.7,1719.6,2.45054341]
[1693379804867,6.28970191,1719.7,1719.6,1.84057625]
[1693379805366,6.28970191,1719.7,1719.6,2.45054341]
[1693379806256,6.86378317,1719.7,1719.6,2.45054341]
[1693379812679,6.86378317,1719.7,1719.6,2.4500621]
[1693379813899,14.08489317,1719.7,1719.6,1.62041074]
[1693379814182,14.08489317,1719.7,1719.5,2.53497062]
[1693379814482,14.08489317,1719.7,1719.6,1.62041074]
[1693379814679,8.26978317,1719.7,1719.6,1.62041074]
[1693379814849,8.26978317,1719.7,1719.6,0.60970659]
[1693379815253,8.26978317,1719.7,1719.5,1.52426647]
[1693379815451,14.08489317,1719.7,1719.5,1.52426647]
[1693379815662,1.406,1719.6,1719.5,1.52426647]
[1693379815985,7.2213,1719.6,1719.5,0.60970659]
[1693379816285,5.8153,1719.6,1719.5,0.60970659]
[1693379817286,5.8153,1719.6,1719.5,1.62041074]
[1693379817448,11.6306,1719.6,1719.5,1.62041074]
[1693379817653,11.6306,1719.6,1719.5,0.60970659]
[1693379817865,5.8153,1719.6,1719.5,1.62041074]
[1693379818265,5.8153,1719.6,1719.5,0.60970659]
[1693379819487,11.6306,1719.6,1719.5,0.60970659]
[1693379819982,5.8153,1719.6,1719.5,0.60970659]
[1693379820986,12.20424228,1719.6,1719.5,0.60970659]
[1693379821189,12.20424228,1719.6,1719.5,1.62041074]
[1693379821403,6.38894228,1719.6,1719.5,0.60970659]
[1693379822657,12.20424228,1719.6,1719.5,0.60970659]
[1693379822971,6.38894228,1719.6,1719.5,0.60970659]
[1693379823557,12.20424228,1719.6,1719.5,0.60970659]
[1693379823911,6.38894228,1719.6,1719.5,0.60970659]
[1693379824496,12.20424228,1719.6,1719.5,1.62041074]
[1693379824678,6.38894228,1719.6,1719.5,1.62041074]
[1693379825278,6.38894228,1719.6,1719.5,1.52426647]
[1693379828117,6.38894228,1719.6,1719.5,1.92526403]
[1693379828317,0.57364228,1719.6,1719.5,1.2290276]
[1693379828685,8.10820191,1719.7,1719.5,2.23973175]
[1693379829011,13.92338191,1719.7,1719.6,1.62097304]
[1693379829734,13.92338191,1719.7,1719.6,0.61026889]
[1693379830990,12.10488191,1719.7,1719.6,0.61026889]
[1693379832519,12.10488191,1719.7,1719.6,1.52482877]
[1693379833504,12.10488191,1719.7,1719.6,0.61026889]
[1693379833699,12.10488191,1719.7,1719.6,1.52482877]
[1693379834296,12.10488191,1719.7,1719.6,0.91455988]
[1693379834516,12.10488191,1719.7,1719.6,1.92526403]
[1693379834717,12.10488191,1719.7,1719.6,0.91455988]
[1693379836129,12.67892409,1719.7,1719.6,0.91455988]
[1693379836329,0.57404218,1719.7,1719.6,0.91455988]
[1693379836531,0.57404218,1719.7,1719.6,3.53541464]
[1693379837122,5.81435,1719.9,1719.6,3.53541464]
[1693379837295,11.62882,1719.9,1719.8,0.61078591]
[1693379837499,11.62882,1719.9,1719.8,1.62149006]
[1693379838028,11.62882,1719.9,1719.8,0.61078591]
[1693379839535,0.46646876,1720.0,1719.8,2.61559205]
[1693379839711,11.72847,1720.1,1719.9,1.92668482]
[1693379839917,11.72847,1720.1,1720.0,1.6211436]
[1693379841815,11.72847,1720.1,1720.0,1.01070415]
[1693379842212,11.72847,1720.1,1720.0,1.6211436]
[1693379842603,11.72847,1720.1,1720.0,1.01070415]
[1693379848151,5.91465,1720.1,1720.0,1.01070415]
[1693379851224,6.5412404,1720.1,1720.0,1.01070415]
[1693379854826,6.5412404,1720.1,1720.0,1.6211436]
[1693379854827,0.7275904,1720.1,1720.0,1.6211436]
[1693379855625,6.5412004,1720.1,1720.0,1.6211436]
[1693379856267,0.7275904,1720.1,1720.0,1.6211436]
[1693379856461,0.7275904,1720.1,1720.0,2.1011436]
[1693379856760,0.7275904,1720.1,1720.0,2.43431701]
[1693379857149,0.62642722,1720.1,1720.0,2.43431701]
[1693379857329,11.62682,1720.2,1720.0,2.43431701]
[1693379857530,11.62682,1720.2,1720.1,1.01070415]
[1693379857764,11.62682,1720.2,1720.0,3.35029768]
[1693379858062,5.81332,1720.2,1720.1,1.01070415]
[1693379858767,13.03285,1720.2,1720.1,1.01070415]
[1693379861833,13.03285,1720.2,1720.0,0.61043945]
[1693379863768,13.03285,1720.2,1720.0,1.52642012]
[1693379864261,13.03285,1720.2,1720.0,2.53712427]
[1693379864566,13.03285,1720.2,1720.1,1.01070415]
[1693379864770,0.60283905,1720.1,1720.0,1.52642012]
[1693379864959,6.41644905,1720.1,1720.0,1.52642012]
[1693379865272,5.81361,1720.1,1720.0,1.52642012]
[1693379865682,5.81361,1720.1,1720.0,0.91598067]
[1693379869585,5.81361,1720.1,1720.0,0.91372339]
[1693379871194,5.81361,1720.1,1720.0,1.92425536]
[1693379871561,5.81361,1720.1,1720.0,0.91372339]
[1693379871981,7.21961,1720.1,1720.0,0.91372339]
[1693379872386,7.21961,1720.1,1720.0,1.92425536]
[1693379872797,7.21961,1720.1,1720.0,0.91372339]
[1693379874204,7.21961,1720.1,1720.0,2.13202124]
[1693379874369,7.21961,1720.1,1720.0,1.92425536]
[1693379874763,7.21961,1720.1,1720.0,0.91372339]
[1693379875696,7.21961,1720.1,1720.0,1.92425536]
[1693379875873,7.21961,1720.1,1720.0,0.91372339]
[1693379876079,7.21961,1720.1,1720.0,1.92425536]
[1693379876290,7.21961,1720.1,1720.0,1.52333573]
[1693379876780,7.21961,1720.1,1720.0,1.92425536]
[1693379877099,7.21961,1720.1,1720.0,0.91372339]
[1693379877518,13.03322,1720.1,1720.0,0.91372339]
[1693379881183,13.63619307,1720.1,1720.0,0.91372339]
[1693379882417,13.63619307,1720.1,1720.0,2.13202124]
[1693379882619,13.63619307,1720.1,1720.0,0.91372339]
[1693379882798,13.63619307,1720.1,1720.0,2.13202124]
[1693379883185,7.82258307,1720.1,1720.0,1.92425536]
[1693379883395,7.82258307,1720.1,1720.0,0.91372339]
[1693379884701,7.82258307,1720.1,1720.0,2.13451842]
[1693379885723,7.82258307,1720.1,1720.0,1.92675254]
[1693379886015,7.82258307,1720.1,1720.0,0.91622057]
[1693379887015,7.82258307,1720.1,1720.0,2.13451842]
[1693379889893,7.82258307,1720.1,1720.0,3.14505039]
[1693379890293,7.82258307,1720.1,1720.0,1.92675254]
[1693379890721,7.82258307,1720.1,1720.0,0.91622057]
[1693379890889,7.82258307,1720.1,1720.0,2.60131069]
[1693379891090,0.60297307,1720.1,1720.0,3.17562209]
[1693379891634,5.81332,1720.2,1720.0,3.17562209]
[1693379891802,5.81332,1720.2,1720.1,1.92669239]
[1693379892613,5.81332,1720.2,1720.1,2.53742998]
[1693379892924,5.81332,1720.2,1720.1,2.5373997]
[1693379894428,5.81332,1720.2,1720.1,1.62123928]
[1693379895030,5.81332,1720.2,1720.1,2.5373997]
[1693379895224,5.81332,1720.2,1720.1,1.62123928]
[1693379895445,5.81332,1720.2,1720.1,2.5373997]
[1693379895748,5.81332,1720.2,1720.1,1.62123928]
[1693379896247,6.41553115,1720.2,1720.1,1.62123928]
[1693379896613,13.63502115,1720.2,1720.1,1.62123928]
[1693379897016,15.89145847,1720.2,1720.1,1.62123928]
[1693379897432,15.89145847,1720.2,1720.1,0.61070731]
[1693379897638,13.63502115,1720.2,1720.1,0.61070731]
[1693379897834,13.63502115,1720.2,1720.0,1.52686773]
[1693379898946,13.63502115,1720.2,1720.1,0.61070731]
[1693379901361,13.63502115,1720.2,1720.0,0.61070731]
[1693379901845,19.44851115,1720.2,1720.0,0.61070731]
[1693379902034,1.406,1720.1,1720.0,0.61070731]
[1693379902221,13.03322,1720.1,1720.0,0.61070731]
[1693379902571,13.03322,1720.1,1720.0,1.52686773]
[1693379902853,13.03322,1720.1,1720.0,1.62123928]
[1693379903070,13.03322,1720.1,1720.0,0.61070731]
[1693379905758,11.62722,1720.1,1720.0,0.61070731]
[1693379910950,12.22873161,1720.1,1720.0,0.61070731]
[1693379913484,12.22873161,1720.1,1720.0,1.62123928]
[1693379913847,12.22873161,1720.1,1720.0,0.61070731]
[1693379918985,12.22873161,1720.1,1720.0,1.62123928]
[1693379919187,12.22873161,1720.1,1720.0,0.61070731]
[1693379920087,12.22873161,1720.1,1720.0,1.62123928]
[1693379920282,12.22873161,1720.1,1720.0,0.61070731]
[1693379923280,12.22873161,1720.1,1720.0,1.09070731]
[1693379923481,12.22873161,1720.1,1720.0,2.10123928]
[1693379933904,12.22873161,1720.1,1720.0,2.00686773]
[1693379934109,12.22873161,1720.1,1720.0,3.0173997]
[1693379936009,12.22873161,1720.1,1720.0,2.40669239]
[1693379938412,12.22873161,1720.1,1720.0,2.76919141]
[1693379938590,0.60151161,1720.1,1720.0,2.76919141]
[1693379938798,6.41512161,1720.1,1720.0,3.07132884]
[1693379939118,5.81361,1720.1,1720.0,3.07132884]
[1693379939282,6.38810128,1720.1,1720.0,3.07132884]
[1693379944307,6.38810128,1720.1,1720.0,3.98716087]
[1693379946922,6.38810128,1720.1,1720.0,2.76886302]
[1693379947787,6.38810128,1720.1,1720.0,3.98716087]
[1693379948520,6.38810128,1720.1,1720.0,2.76886302]
[1693379948890,6.38810128,1720.1,1720.0,3.98716087]
[1693379949388,6.38810128,1720.1,1720.0,2.76886302]
[1693379949593,6.38810128,1720.1,1720.0,5.94480949]
[1693379951020,6.38810128,1720.1,1720.0,3.07132884]
[1693379951221,6.38810128,1720.1,1720.0,3.9868905]
[1693379951521,6.38810128,1720.1,1720.0,3.98685468]
[1693379951756,6.38810128,1720.1,1720.0,3.07132884]
[1693379952084,0.57449128,1720.1,1720.0,3.07132884]
[1693379952289,5.81344,1720.2,1720.1,0.57449128]
[1693379952525,5.81344,1720.2,1720.1,2.71057019]
[1693379952722,6.38618008,1720.2,1720.1,4.29349961]
[1693379953831,6.38618008,1720.2,1720.1,3.07288309]
[1693379955530,6.38618008,1720.2,1720.1,2.49839181]
[1693379958637,6.38618008,1720.2,1720.1,1.92599436]
[1693379960334,6.38618008,1720.2,1720.1,2.53593177]
[1693379969852,6.38618008,1720.2,1720.1,1.92599436]
[1693379978781,6.38618008,1720.2,1720.1,0.91546239]
[1693379978941,6.38618008,1720.2,1720.1,1.92599436]
[1693379980852,6.38618008,1720.2,1720.1,3.14661088]
[1693379983880,6.38618008,1720.2,1720.1,2.23114849]
[1693379984255,6.38618008,1720.2,1720.1,2.23141631]
[1693379993694,6.38618008,1720.2,1720.1,3.75767609]
[1693379996597,6.38618008,1720.2,1720.1,2.53666827]
[1693379996920,6.38618008,1720.2,1720.1,3.75814318]
[1693379997413,6.38618008,1720.2,1720.1,2.53666827]
[1693380005043,6.38618008,1720.2,1720.1,3.75816372]
[1693380005352,20.96040509,1720.2,1720.1,3.75816372]
[1693380005512,15.14696509,1720.2,1720.1,3.14807558]
[1693380007509,15.14696509,1720.2,1720.1,1.92658013]
[1693380008240,20.96040509,1720.2,1720.1,1.92658013]
[1693380008409,15.14696509,1720.2,1720.1,1.92658013]
[1693380009267,20.96040509,1720.2,1720.1,1.92658013]
[1693380009914,15.14696509,1720.2,1720.1,1.92658013]
[1693380011014,20.96040509,1720.2,1720.1,1.92658013]
[1693380038001,19.41889008,1720.2,1720.1,1.92658013]
[1693380049912,19.41889008,1720.2,1720.1,1.92666046]
[1693380050216,13.60545008,1720.2,1720.1,1.92666046]
[1693380050627,13.60545008,1720.2,1720.1,3.14827167]
[1693380054249,12.19945008,1720.2,1720.1,3.14827167]
[1693380054449,12.19945008,1720.2,1720.1,2.74759183]
[1693380057450,12.19945008,1720.2,1720.1,2.23206326]
[1693380058671,0.57274008,1720.2,1720.1,2.23206326]
[1693380058969,12.19945008,1720.2,1720.1,2.23206326]
[1693380061055,0.57274008,1720.2,1720.1,3.75907727]
[1693380061260,1e-08,1720.2,1720.1,3.8839327]
[1693380061417,1e-08,1720.2,1720.1,5.11546765]
[1693380061756,11.62545,1720.4,1720.1,6.94788447]
[1693380061964,11.62545,1720.4,1720.3,1.22140165]
[1693380063060,5.81269,1720.4,1720.3,1.22140165]
[1693380063260,5.81269,1720.4,1720.3,2.1371014]
[1693380063460,5.81269,1720.4,1720.3,2.60453195]
[1693380063760,5.81269,1720.4,1720.3,2.69928425]
[1693380064408,5.81269,1720.4,1720.3,3.61498089]
[1693380064527,5.81269,1720.4,1720.3,2.69928425]
[1693380064727,5.81269,1720.4,1720.3,2.39357234]
[1693380064942,5.81269,1720.4,1720.3,3.61497399]
[1693380065562,5.81269,1720.4,1720.3,2.39357234]
[1693380068964,6.38115206,1720.4,1720.3,2.39357234]
[1693380071835,6.38115206,1720.4,1720.3,3.00340101]
[1693380072040,0.56846206,1720.4,1720.3,3.00340101]
[1693380072272,0.56846206,1720.4,1720.3,2.39357234]
[1693380072684,0.56846206,1720.4,1720.3,3.61497399]
[1693380072970,0.56846206,1720.4,1720.3,2.39357234]
[1693380073456,0.56846206,1720.4,1720.3,3.61497399]
[1693380073842,0.56846206,1720.4,1720.3,2.39357234]